bitfinex/quotes_BTCUSD_20240101
["timestamp","ask_amount","ask_price","bid_price","bid_amount"]
[1704143068584,0.23321711,43779.0,43778.0,0.6999]
[1704143069230,0.23421711,43779.0,43778.0,0.6999]
[1704143070320,0.004,43779.0,43778.0,0.7229]
[1704143070527,0.001,43779.0,43778.0,0.7229]
[1704143070951,0.004,43779.0,43778.0,0.7239]
[1704143071224,0.007,43779.0,43778.0,0.7239]
[1704143071443,0.008,43779.0,43778.0,0.7239]
[1704143071648,0.00909091,43782.0,43778.0,0.7229]
[1704143072093,0.00909091,43782.0,43778.0,0.7279]
[1704143072552,0.00909091,43782.0,43778.0,0.7229]
[1704143072775,0.001,43779.0,43778.0,0.7299]
[1704143073260,0.00909091,43782.0,43778.0,0.7299]
[1704143073261,0.00909091,43782.0,43778.0,0.7259]
[1704143073471,0.00909091,43782.0,43778.0,0.7279]
[1704143073896,0.00909091,43782.0,43778.0,0.7229]
[1704143074108,0.001,43779.0,43778.0,0.7269]
[1704143074334,0.00909091,43782.0,43778.0,0.7279]
[1704143074537,0.00909091,43782.0,43781.0,0.6999]
[1704143074979,0.00909091,43782.0,43781.0,0.7229]
[1704143076059,0.01009091,43782.0,43781.0,0.7229]
[1704143076549,0.01309091,43782.0,43781.0,0.7229]
[1704143077209,0.01009091,43782.0,43781.0,0.7229]
[1704143077424,0.00909091,43782.0,43781.0,0.7229]
[1704143077655,0.01009091,43782.0,43781.0,0.7229]
[1704143078968,0.01109091,43782.0,43781.0,0.7319]
[1704143079168,0.01009091,43782.0,43781.0,0.7319]
[1704143079410,0.00909091,43782.0,43781.0,0.7229]
[1704143079616,0.00909091,43782.0,43781.0,0.7309]
[1704143079617,0.01009091,43782.0,43781.0,0.7309]
[1704143081305,0.01109091,43782.0,43781.0,0.7399]
[1704143081512,0.22539091,43787.0,43781.0,0.7399]
[1704143081724,0.45860802,43787.0,43781.0,0.7399]
[1704143081964,0.0522,43785.0,43781.0,0.7399]
[1704143082195,0.05844,43786.0,43781.0,0.7399]
[1704143082443,0.05844,43786.0,43781.0,0.7229]
[1704143082692,0.04878,43784.0,43781.0,0.032]
[1704143082897,0.05952,43786.0,43781.0,0.032]
[1704143083118,0.05382,43785.0,43781.0,0.032]
[1704143083347,0.06222,43786.0,43781.0,0.04]
[1704143083561,0.05394,43785.0,43784.0,0.6999]
[1704143083773,0.46060802,43787.0,43784.0,0.6999]
[1704143083988,0.50464802,43787.0,43784.0,0.6999]
[1704143084195,0.50364802,43787.0,43784.0,0.6999]
[1704143084404,0.45960802,43787.0,43784.0,0.6999]
[1704143084628,0.45860802,43787.0,43786.0,0.6999]
[1704143085888,0.45960802,43787.0,43786.0,0.6999]
[1704143086070,0.45860802,43787.0,43786.0,0.7019]
[1704143086570,0.45860802,43787.0,43786.0,0.7029]
[1704143087626,0.45860802,43787.0,43786.0,0.7009]
[1704143088128,0.46160802,43787.0,43786.0,0.7009]
[1704143088574,0.45860802,43787.0,43786.0,0.7009]
[1704143088784,0.92901302,43787.0,43786.0,0.7019]
[1704143088997,0.99609302,43787.0,43786.0,0.7019]
[1704143089679,0.97141302,43787.0,43786.0,0.7009]
[1704143089940,0.97141302,43787.0,43785.0,0.6999]
[1704143090179,0.69679591,43787.0,43786.0,0.001]
[1704143090424,0.69679591,43787.0,43785.0,0.6999]
[1704143090425,0.69079591,43787.0,43785.0,0.6999]
[1704143090622,0.60379591,43787.0,43786.0,0.001]
[1704143091100,0.60079591,43787.0,43786.0,0.001]
[1704143091322,0.61379591,43787.0,43786.0,0.002]
[1704143091544,0.82401302,43787.0,43786.0,0.6999]
[1704143091974,0.82401302,43787.0,43786.0,0.7009]
[1704143092226,0.83501302,43787.0,43786.0,0.7009]
[1704143092459,0.93501302,43787.0,43786.0,0.6999]
[1704143092602,0.98931302,43787.0,43786.0,0.7009]
[1704143092832,1.01231302,43787.0,43786.0,0.7019]
[1704143093035,0.99931302,43787.0,43786.0,0.7009]
[1704143093623,0.99931302,43787.0,43786.0,0.001]
[1704143093849,1.01131302,43787.0,43786.0,0.002]
[1704143094069,0.99031302,43787.0,43786.0,0.001]
[1704143094570,1.00031302,43787.0,43786.0,0.002]
[1704143095627,0.94601302,43787.0,43786.0,0.002]
[1704143096015,0.99041302,43787.0,43786.0,0.002]
[1704143096427,0.99041302,43787.0,43786.0,0.7019]
[1704143096634,0.94601302,43787.0,43786.0,0.7019]
[1704143097005,0.99863302,43787.0,43786.0,0.7019]
[1704143097683,0.99863302,43787.0,43786.0,0.002]
[1704143097684,0.63322802,43787.0,43786.0,0.002]
[1704143097819,0.99863802,43787.0,43786.0,0.002]
[1704143099524,0.99863802,43787.0,43786.0,0.7019]
[1704143100826,0.94601802,43787.0,43786.0,0.7019]
[1704143101068,0.99005802,43787.0,43786.0,0.7019]
[1704143101524,0.94601802,43787.0,43786.0,0.7019]
[1704143101760,0.94601802,43787.0,43786.0,0.002]
[1704143102153,0.84601802,43787.0,43786.0,0.002]
[1704143102374,0.84601802,43787.0,43786.0,0.98948446]
[1704143102594,0.84601802,43787.0,43786.0,1.68938446]
[1704143102824,0.84601802,43787.0,43786.0,1.68838446]
[1704143102967,0.83601802,43787.0,43786.0,1.68838446]
[1704143103165,0.83401802,43787.0,43786.0,1.68838446]
[1704143103442,0.83401802,43787.0,43786.0,1.68937331]
[1704143103443,0.84601802,43787.0,43786.0,1.68937331]
[1704143103685,0.82401802,43787.0,43786.0,1.68737331]
[1704143104101,0.82401802,43787.0,43786.0,1.68837331]
[1704143104102,0.83101802,43787.0,43786.0,1.68837331]
[1704143104524,0.83101802,43787.0,43786.0,0.7009]
[1704143104953,0.83101802,43787.0,43786.0,1.68836969]
[1704143105375,0.01609091,43787.0,43786.0,1.68836969]
[1704143105824,0.02209091,43787.0,43786.0,1.68936969]
[1704143106242,0.02209091,43787.0,43786.0,0.7019]
[1704143106695,0.02209091,43787.0,43786.0,1.68935383]
[1704143107369,0.02209091,43787.0,43786.0,0.7019]
[1704143108545,0.46733801,43787.0,43786.0,0.7019]
[1704143109025,0.54586075,43787.0,43786.0,0.7019]
[1704143109230,0.82038589,43787.0,43786.0,0.7019]
[1704143109706,1.51312616,43787.0,43786.0,0.002]
[1704143109931,1.47056319,43787.0,43786.0,0.002]
[1704143110150,1.77459796,43787.0,43786.0,0.002]
[1704143111466,1.75509796,43787.0,43786.0,0.002]
[1704143116811,0.665446,43782.0,43781.0,0.6999]
[1704143116961,1.44955016,43782.0,43781.0,0.6999]
[1704143117158,1.7067778,43782.0,43781.0,0.67166671]
[1704143117432,1.7067778,43782.0,43769.0,0.05]
[1704143117433,0.1,43773.0,43769.0,0.05]
[1704143117636,0.10951762,43770.0,43769.0,0.05]
[1704143117850,0.34273473,43770.0,43769.0,0.05]
[1704143118056,0.58958701,43770.0,43769.0,0.05]
[1704143118272,0.31532256,43770.0,43769.0,0.05]
[1704143118481,0.23321711,43770.0,43769.0,0.3999]
[1704143118689,0.34273473,43770.0,43769.0,0.3999]
[1704143118902,0.59019187,43770.0,43769.0,0.3999]
[1704143119111,0.59019187,43770.0,43769.0,0.3499]
[1704143119112,0.34273473,43770.0,43769.0,0.3499]
[1704143119347,0.31531992,43770.0,43769.0,0.3499]
[1704143119604,1.32593945,43770.0,43769.0,0.3499]
[1704143119856,1.39565945,43770.0,43769.0,0.3499]
[1704143120301,1.39665945,43770.0,43769.0,0.3539]
[1704143120506,0.1,43765.0,43762.0,0.3499]
[1704143120718,0.23321711,43764.0,43762.0,0.3499]
[1704143121586,0.23321711,43764.0,43758.0,0.1941]
[1704143121791,0.23321711,43764.0,43755.0,0.01]
[1704143122220,0.06568687,43770.0,43757.0,0.01]
[1704143122453,0.06568687,43770.0,43763.0,0.3499]
[1704143122454,0.23321711,43769.0,43763.0,0.3499]
[1704143124556,0.23521711,43769.0,43763.0,0.3499]
[1704143124768,0.23621711,43769.0,43763.0,0.3499]
[1704143125010,0.23521711,43769.0,43763.0,0.3499]
[1704143125220,0.23521711,43769.0,43763.0,0.3509]
[1704143125427,0.24021711,43769.0,43763.0,0.3509]
[1704143125636,0.24021711,43769.0,43768.0,0.3499]
[1704143125637,0.23821711,43769.0,43768.0,0.3499]
[1704143125849,0.24521711,43769.0,43768.0,0.3499]
[1704143126275,0.012,43769.0,43768.0,0.3499]
[1704143126738,0.365513,43774.0,43768.0,0.3499]
[1704143126958,0.008,43769.0,43768.0,0.3509]
[1704143127180,0.018,43769.0,43768.0,0.3519]
[1704143127403,0.008,43769.0,43768.0,0.3509]
[1704143127669,0.23321711,43773.0,43768.0,0.3499]
[1704143128543,0.23321711,43773.0,43772.0,0.3499]
[1704143129380,0.23521711,43773.0,43772.0,0.3499]
[1704143129593,0.23321711,43773.0,43772.0,0.3499]
[1704143129815,0.23321711,43773.0,43772.0,0.3509]
[1704143129816,0.24121711,43773.0,43772.0,0.3509]
[1704143130255,0.008,43773.0,43772.0,0.3509]
[1704143130692,0.009,43773.0,43772.0,0.3509]
[1704143131345,0.008,43773.0,43772.0,0.3509]
[1704143131571,0.013,43773.0,43772.0,0.3519]
[1704143131778,0.013,43773.0,43772.0,0.3654973]
[1704143132205,0.01,43773.0,43772.0,0.3654973]
[1704143132677,0.017,43773.0,43772.0,0.3664973]
[1704143135711,0.005,43773.0,43772.0,0.3644973]
[1704143136514,0.365506,43775.0,43772.0,0.3634973]
[1704143136711,0.23321711,43774.0,43772.0,0.3634973]
[1704143136940,0.64036811,43773.0,43772.0,0.3634973]
[1704143137193,1.00931553,43773.0,43772.0,0.3634973]
[1704143137348,1.00931553,43773.0,43772.0,0.3499]
[1704143137349,1.51678975,43773.0,43772.0,0.3499]
[1704143137551,0.1,43770.0,43760.0,0.05]
[1704143137841,0.1,43767.0,43760.0,0.05]
[1704143138010,0.33321711,43766.0,43761.0,0.01234733]
[1704143138212,0.53791711,43766.0,43758.0,0.1987]
[1704143138514,0.53791711,43766.0,43759.0,0.01239775]
[1704143138515,0.365611,43763.0,43759.0,0.01239775]
[1704143138742,0.33321711,43762.0,43759.0,0.01239775]
[1704143138941,0.1,43757.0,43751.0,0.05]
[1704143139115,0.23321711,43756.0,43751.0,0.05]
[1704143139312,0.23321711,43756.0,43752.0,0.01129004]
[1704143139575,0.23321711,43756.0,43751.0,0.05]
[1704143140259,0.23321711,43756.0,43746.0,0.01]
[1704143140419,0.23321711,43756.0,43747.0,0.023]
[1704143140703,0.23321711,43756.0,43751.0,0.004]
[1704143141311,0.23321711,43756.0,43751.0,0.001]
[1704143141526,0.23421711,43756.0,43751.0,0.001]
[1704143141741,0.23421711,43756.0,43755.0,0.3499]
[1704143141742,0.16421711,43756.0,43755.0,0.3499]
[1704143141973,0.16521711,43756.0,43755.0,0.3499]
[1704143142180,0.16421711,43756.0,43755.0,0.36118613]
[1704143142603,0.16621711,43756.0,43755.0,0.36118613]
[1704143142782,0.16321711,43756.0,43755.0,0.36118613]
[1704143143021,0.16321711,43756.0,43755.0,0.3499]
[1704143143241,0.17021711,43756.0,43755.0,0.3509]
[1704143143469,0.16321711,43756.0,43755.0,0.36118613]
[1704143144126,0.16321711,43756.0,43755.0,0.3499]
[1704143144566,0.16321711,43756.0,43755.0,0.36118613]
[1704143144770,0.16721711,43756.0,43755.0,0.36218613]
[1704143145206,0.004,43756.0,43755.0,0.36218613]
[1704143146542,0.365622,43761.0,43755.0,0.36118613]
[1704143146747,0.002,43756.0,43755.0,0.36118613]
[1704143147616,0.59883911,43761.0,43755.0,0.36118613]
[1704143147895,0.002,43756.0,43755.0,0.36218613]
[1704143148105,0.60783911,43761.0,43755.0,0.36218613]
[1704143148321,0.004,43756.0,43755.0,0.36218613]
[1704143148729,0.17373956,43760.0,43755.0,0.36118613]
[1704143149168,0.59883911,43761.0,43755.0,0.36118613]
[1704143149386,0.59883911,43761.0,43756.0,0.023]
[1704143149387,0.23821711,43761.0,43756.0,0.023]
[1704143149600,0.005,43761.0,43756.0,0.023]
[1704143149811,0.005,43761.0,43757.0,0.0113274]
[1704143151413,0.15278445,43763.0,43757.0,0.0113274]
[1704143151661,0.38600156,43763.0,43760.0,0.3499]
[1704143151872,0.006,43761.0,43760.0,0.3499]
[1704143152306,0.008,43761.0,43760.0,0.36119669]
[1704143152984,0.38600156,43763.0,43760.0,0.36119669]
[1704143153193,0.23321711,43763.0,43760.0,0.36119669]
[1704143153412,0.23321711,43763.0,43760.0,0.3499]
[1704143153628,0.24221711,43763.0,43761.0,0.01128645]
[1704143153862,0.24221711,43763.0,43760.0,0.3499]
[1704143154083,0.23321711,43763.0,43760.0,0.3499]
[1704143154305,0.42016866,43771.0,43760.0,0.3499]
[1704143154520,0.01,43763.0,43762.0,0.3499]
[1704143154739,0.01,43763.0,43762.0,0.3729]
[1704143154956,0.23321711,43770.0,43762.0,0.38416085]
[1704143155170,0.23321711,43770.0,43763.0,0.023]
[1704143155644,0.23321711,43770.0,43764.0,0.01124037]
[1704143157113,0.23721711,43770.0,43764.0,0.01224037]
[1704143157556,0.004,43770.0,43769.0,0.3499]
[1704143157999,0.004,43770.0,43769.0,0.3610892]
[1704143158208,0.2157,43775.0,43769.0,0.3610892]
[1704143158412,0.23321711,43774.0,43769.0,0.3610892]
[1704143158629,0.001,43770.0,43769.0,0.3610892]
[1704143158848,0.2157,43781.0,43770.0,0.05514]
[1704143159061,0.2157,43781.0,43771.0,0.023]
[1704143159062,0.12617277,43780.0,43771.0,0.023]
[1704143159307,0.12617277,43780.0,43771.0,0.03408232]
[1704143159757,0.12617277,43780.0,43779.0,0.3499]
[1704143160165,0.23321711,43781.0,43779.0,0.3499]
[1704143160365,0.15366861,43780.0,43779.0,0.3499]
[1704143160786,0.15566861,43780.0,43779.0,0.3499]
[1704143161242,0.15666861,43780.0,43779.0,0.3499]
[1704143161443,0.15466861,43780.0,43779.0,0.3499]
[1704143161640,0.15366861,43780.0,43779.0,0.3499]
[1704143161890,0.15366861,43780.0,43779.0,0.3509]
[1704143162737,0.65329577,43781.0,43779.0,0.3509]
[1704143162950,0.59867311,43781.0,43779.0,0.3509]
[1704143163228,0.59867311,43781.0,43779.0,0.3539]
[1704143163868,0.59867311,43781.0,43779.0,0.3509]
[1704143164085,0.59867311,43781.0,43779.0,0.3529]
[1704143164514,0.59867911,43781.0,43779.0,0.3519]
[1704143164724,0.23321711,43781.0,43780.0,0.3499]
[1704143164905,0.59967211,43781.0,43780.0,0.3499]
[1704143165155,0.65429477,43781.0,43780.0,0.3499]
[1704143165370,0.59967211,43781.0,43780.0,0.3499]
[1704143165588,0.59867211,43781.0,43780.0,0.3499]
[1704143166471,0.60167211,43781.0,43780.0,0.3499]
[1704143169528,0.003,43781.0,43780.0,0.3499]
[1704143169733,0.003,43781.0,43780.0,0.3729]
[1704143170156,0.003,43781.0,43780.0,0.38202798]
[1704143170812,0.001,43781.0,43780.0,0.38902798]
[1704143171019,0.002,43781.0,43780.0,0.39602798]
[1704143171236,0.001,43781.0,43780.0,0.38902798]
[1704143171666,0.002,43781.0,43780.0,0.39802798]
[1704143175599,0.23521711,43781.0,43780.0,0.37502798]
[1704143176025,0.80067211,43781.0,43780.0,0.37502798]
[1704143176233,0.65431211,43781.0,43780.0,0.3659]
[1704143176463,0.60067211,43781.0,43780.0,0.3659]
[1704143176675,0.60067211,43781.0,43780.0,0.02604248]
[1704143177104,0.59967211,43781.0,43780.0,0.01704248]
[1704143177525,0.59967211,43781.0,43780.0,0.36694248]
[1704143177725,0.59967211,43781.0,43780.0,0.3569]
[1704143177933,0.59867211,43781.0,43780.0,0.35995999]
[1704143178152,0.23321711,43781.0,43780.0,0.35995999]
[1704143178365,0.60467211,43781.0,43780.0,0.36095999]
[1704143178852,0.60067211,43781.0,43780.0,0.35995999]
[1704143179078,0.59867211,43781.0,43780.0,0.3499]
[1704143179290,0.60667211,43781.0,43780.0,0.36095999]
[1704143179909,0.60667211,43781.0,43780.0,0.3509]
[1704143180119,0.60667211,43781.0,43780.0,0.3519]
[1704143180359,0.61267211,43781.0,43780.0,0.36195999]
[1704143181201,0.60667211,43781.0,43780.0,0.36095999]
[1704143181403,0.60267211,43781.0,43780.0,0.36095999]
[1704143181614,0.60967211,43781.0,43780.0,0.36195999]
[1704143183627,0.60967211,43781.0,43780.0,0.3519]
[1704143184065,0.60967211,43781.0,43780.0,0.36195999]
[1704143185632,0.60967211,43781.0,43780.0,0.36189317]
[1704143192360,0.376455,43781.0,43780.0,0.36189317]
[1704143192537,0.376455,43781.0,43780.0,0.35183318]
[1704143192813,0.376455,43781.0,43780.0,0.36165041]
[1704143196201,0.372455,43781.0,43780.0,0.36065041]
[1704143196632,0.374455,43781.0,43780.0,0.36065041]
[1704143197098,0.365455,43781.0,43780.0,0.35965041]
[1704143197338,0.365455,43781.0,43780.0,0.36265041]
[1704143197472,0.05462266,43782.0,43780.0,0.36265041]
[1704143197720,0.44736057,43784.0,43780.0,0.36365041]
[1704143197721,0.001,43781.0,43780.0,0.36365041]
[1704143198150,0.42006066,43783.0,43780.0,0.36265041]
[1704143198356,0.42006066,43783.0,43780.0,0.36465041]
[1704143198532,0.05462266,43782.0,43780.0,0.36465041]
[1704143198745,0.22384521,43782.0,43780.0,0.36265041]
[1704143199203,0.22384521,43782.0,43780.0,0.35965041]
[1704143199470,0.05462266,43781.0,43780.0,0.36265041]
[1704143199865,0.05462266,43781.0,43780.0,0.35965041]
[1704143200075,0.05462266,43781.0,43780.0,0.36065041]
[1704143200277,0.05462266,43781.0,43780.0,0.36165041]
[1704143200513,0.08192457,43781.0,43780.0,0.36365041]
[1704143200718,0.08192457,43781.0,43780.0,0.36165041]
[1704143200914,0.08292457,43781.0,43780.0,0.36465041]
[1704143201127,0.08292457,43781.0,43780.0,0.36565041]
[1704143201429,0.11023276,43781.0,43780.0,0.36565041]
[1704143201619,0.37768843,43781.0,43780.0,0.36565041]
[1704143202023,0.30768843,43781.0,43780.0,0.36465041]
[1704143202351,0.30768843,43781.0,43780.0,0.35965041]
[1704143202552,0.30768843,43781.0,43780.0,0.36265041]
[1704143203180,0.30768843,43781.0,43780.0,0.35965041]
[1704143203379,0.40517285,43781.0,43780.0,0.36465041]
[1704143203811,0.40517285,43781.0,43780.0,0.36665041]
[1704143204011,0.26845567,43781.0,43780.0,0.36465041]
[1704143204503,0.26845567,43781.0,43780.0,0.36665041]
[1704143206777,0.40517285,43781.0,43780.0,0.36665041]
[1704143208833,0.26845567,43781.0,43780.0,0.36665041]
[1704143209072,0.26845567,43781.0,43780.0,1.04802002]
[1704143209073,0.001,43781.0,43780.0,1.04802002]
[1704143210162,0.05477804,43783.0,43780.0,1.04102002]
[1704143210334,0.05477804,43783.0,43781.0,0.68136961]
[1704143210572,0.05477804,43783.0,43781.0,0.03208381]
[1704143212701,0.05477804,43783.0,43782.0,0.3499]
[1704143212935,0.05477804,43783.0,43782.0,0.3729]
[1704143213182,0.001,43783.0,43782.0,0.38197358]
[1704143213386,0.002,43783.0,43782.0,0.38197358]
[1704143213997,0.001,43783.0,43782.0,0.38197358]
[1704143214207,0.001,43783.0,43782.0,0.39297358]
[1704143214641,0.002,43783.0,43782.0,0.40197358]
[1704143225188,0.05473195,43790.0,43786.0,0.4]
[1704143225407,0.0265,43796.0,43795.0,0.31]
[1704143225621,0.0265,43796.0,43795.0,1.20855511]
[1704143225838,0.0265,43796.0,43795.0,1.72696588]
[1704143226125,0.00943044,43800.0,43799.0,0.71]
[1704143226326,0.00943044,43800.0,43799.0,1.63152211]
[1704143226568,0.00943044,43800.0,43799.0,2.11554573]
[1704143226803,0.00943044,43800.0,43799.0,2.12653197]
[1704143227028,0.00943044,43800.0,43799.0,2.22385197]
[1704143227265,0.00943044,43800.0,43799.0,2.14453197]
[1704143227492,0.00943044,43800.0,43799.0,2.34353137]
[1704143227493,0.01143044,43800.0,43799.0,2.34353137]
[1704143227718,0.01343044,43800.0,43799.0,2.69343137]
[1704143228438,0.01343044,43800.0,43799.0,2.60741197]
[1704143228674,0.01143044,43800.0,43799.0,2.33244138]
[1704143229101,0.01343044,43800.0,43799.0,2.35044138]
[1704143230009,0.01343044,43800.0,43799.0,2.43646078]
[1704143232283,0.01343044,43800.0,43799.0,2.80176578]
[1704143232525,0.01343044,43800.0,43799.0,2.84160578]
[1704143232960,0.01343044,43800.0,43799.0,2.86937165]
[1704143234992,0.01343044,43800.0,43799.0,2.13876165]
[1704143235215,0.01343044,43800.0,43799.0,2.50406665]
[1704143236049,0.01343044,43800.0,43799.0,2.86937165]
[1704143236707,0.01343044,43800.0,43799.0,1.82815422]
[1704143236926,0.01343044,43800.0,43799.0,1.72218798]
[1704143237159,0.01343044,43800.0,43799.0,1.62218798]
[1704143237379,0.01343044,43800.0,43799.0,1.161205]
[1704143238668,0.01343044,43800.0,43799.0,1.461205]
[1704143238844,0.01343044,43800.0,43799.0,1.484205]
[1704143242158,0.01343044,43800.0,43799.0,1.575599]
[1704143242628,0.01343044,43800.0,43799.0,1.620779]
[1704143243052,0.01343044,43800.0,43799.0,1.90881611]
[1704143243259,0.01343044,43800.0,43799.0,2.06293611]
[1704143245372,0.01343044,43800.0,43799.0,1.97154211]
[1704143245802,0.01343044,43800.0,43799.0,1.71742211]
[1704143246014,0.01343044,43800.0,43799.0,1.484205]
[1704143246283,0.01343044,43800.0,43799.0,0.6859]
[1704143246512,0.01343044,43800.0,43799.0,0.3859]
[1704143247375,0.24664755,43800.0,43799.0,0.3859]
[1704143247602,0.29458755,43800.0,43799.0,0.3859]
[1704143247821,0.24664755,43800.0,43799.0,0.3859]
[1704143248199,0.24464755,43800.0,43799.0,0.3679]
[1704143248654,0.24264755,43800.0,43799.0,0.3679]
[1704143248862,0.24464755,43800.0,43799.0,0.3679]
[1704143249096,0.24464755,43800.0,43799.0,0.3709]
[1704143249450,0.24264755,43800.0,43799.0,0.3529]
[1704143249653,0.24264755,43800.0,43799.0,0.3569]
[1704143249912,0.24264755,43800.0,43799.0,0.3539]
[1704143250094,0.00943044,43800.0,43799.0,0.3539]
[1704143250338,0.00943044,43800.0,43799.0,0.3529]
[1704143251991,0.00943044,43800.0,43799.0,0.3569]
[1704143252213,0.00943044,43800.0,43799.0,0.3539]
[1704143252439,0.00943044,43800.0,43799.0,0.6649]
[1704143252675,0.00943044,43800.0,43799.0,0.6609]
[1704143252904,0.00943044,43800.0,43799.0,0.6639]
[1704143253332,0.00943044,43800.0,43799.0,0.6599]
[1704143253554,0.00943044,43800.0,43799.0,0.6629]
[1704143253814,0.00943044,43800.0,43799.0,0.6599]
[1704143254265,0.00943044,43800.0,43799.0,0.6829]
[1704143254493,0.00943044,43800.0,43799.0,1.048205]
[1704143255518,0.00943044,43800.0,43799.0,1.052205]
[1704143255723,0.01043044,43800.0,43799.0,0.6939]
[1704143255935,0.01043044,43800.0,43799.0,1.055205]
[1704143256152,0.01043044,43800.0,43799.0,0.6899]
[1704143256372,0.01043044,43800.0,43799.0,0.6659]
[1704143256598,0.01043044,43800.0,43799.0,0.6809]
[1704143256829,0.01143044,43800.0,43799.0,0.6809]
[1704143257038,0.01043044,43800.0,43799.0,0.6759]
[1704143257243,0.01143044,43800.0,43799.0,0.6779]
[1704143257675,0.01143044,43800.0,43799.0,0.6659]
[1704143257676,0.01043044,43800.0,43799.0,0.6659]
[1704143257882,0.01043044,43800.0,43799.0,0.6759]
[1704143258293,0.01043044,43800.0,43799.0,0.6659]
[1704143258705,0.01143044,43800.0,43799.0,0.6729]
[1704143258934,0.01043044,43800.0,43799.0,0.6569]
[1704143259121,0.01043044,43800.0,43799.0,0.6699]
[1704143259372,0.01143044,43800.0,43799.0,0.6699]
[1704143259757,0.01043044,43800.0,43799.0,0.6569]
[1704143259957,0.01043044,43800.0,43799.0,0.6659]
[1704143260158,0.01143044,43800.0,43799.0,0.6659]
[1704143260614,0.01143044,43800.0,43799.0,0.3659]
[1704143260832,0.15893252,43800.0,43799.0,0.3659]
[1704143261007,0.01143044,43800.0,43799.0,0.3659]
[1704143262108,0.17972957,43802.0,43799.0,0.3659]
[1704143262109,0.12116001,43802.0,43799.0,0.3659]
[1704143262322,0.00909091,43803.0,43799.0,0.3659]
[1704143262978,0.00909091,43803.0,43799.0,0.3589]
[1704143263325,0.001,43802.0,43799.0,0.3569]
[1704143263543,0.001,43802.0,43799.0,0.3659]
[1704143263760,0.001,43802.0,43799.0,0.3589]
[1704143263965,0.001,43802.0,43799.0,0.3659]
[1704143264177,0.41278719,43801.0,43799.0,0.3569]
[1704143264396,0.23321711,43801.0,43799.0,0.3659]
[1704143264583,0.23321711,43801.0,43799.0,0.016]
[1704143265110,0.23321711,43801.0,43799.0,0.009]
[1704143265331,0.23321711,43801.0,43799.0,0.016]
[1704143265566,0.23321711,43801.0,43799.0,0.009]
[1704143265772,0.23321711,43801.0,43795.0,0.31]
[1704143265985,0.23421711,43801.0,43799.0,0.016]
[1704143266404,0.23421711,43801.0,43799.0,0.007]
[1704143266606,0.23421711,43801.0,43800.0,0.3499]
[1704143266810,0.23521711,43801.0,43800.0,0.3499]
[1704143267231,0.23421711,43801.0,43800.0,0.3499]
[1704143267634,0.23521711,43801.0,43800.0,0.3499]
[1704143268025,0.23421711,43801.0,43800.0,0.3499]
[1704143268445,0.23521711,43801.0,43800.0,0.3559]
[1704143268877,0.23421711,43801.0,43800.0,0.3559]
[1704143269107,0.23521711,43801.0,43800.0,0.3639]
[1704143269961,0.38177711,43801.0,43800.0,0.3639]
[1704143271731,0.58177711,43801.0,43800.0,0.3639]
[1704143271968,1.05249447,43801.0,43800.0,0.3639]
[1704143272174,1.27135656,43801.0,43800.0,0.3639]
[1704143272582,1.3604724,43801.0,43800.0,0.014]
[1704143272787,1.3604724,43801.0,43796.0,0.3499]
[1704143272788,0.2,43797.0,43796.0,0.3499]
[1704143272999,0.43321711,43797.0,43796.0,0.3499]
[1704143273425,0.47839711,43797.0,43796.0,0.3499]
[1704143273637,0.43321711,43797.0,43796.0,0.3499]
[1704143275788,0.43321711,43797.0,43796.0,0.3519]
[1704143276208,0.23321711,43797.0,43796.0,0.3519]
[1704143276428,0.10453918,43800.0,43796.0,0.3519]
[1704143276429,0.00909091,43803.0,43796.0,0.74023]
[1704143276645,0.00909091,43803.0,43800.0,0.365292]
[1704143276868,0.00909091,43803.0,43796.0,0.3749]
[1704143276869,0.00909091,43803.0,43796.0,0.3729]
[1704143277108,0.00909091,43803.0,43800.0,0.365292]
[1704143277526,0.00909091,43803.0,43802.0,0.3499]
[1704143278154,0.00909091,43803.0,43802.0,0.73818]
[1704143278810,0.01009091,43803.0,43802.0,0.73818]
[1704143279016,0.01109091,43803.0,43802.0,0.73818]
[1704143279228,0.00909091,43803.0,43802.0,0.73818]
[1704143279641,0.00909091,43803.0,43802.0,0.76118]
[1704143279642,0.01109091,43803.0,43802.0,0.76118]
[1704143279830,0.01009091,43803.0,43802.0,0.75018]
[1704143280044,0.00909091,43803.0,43802.0,0.75018]
[1704143280488,0.01109091,43803.0,43802.0,0.75118]
[1704143281489,0.01009091,43803.0,43802.0,0.73818]
[1704143281698,0.01109091,43803.0,43802.0,0.74918]
[1704143281899,0.01109091,43803.0,43802.0,0.3849]
[1704143281900,0.01009091,43803.0,43802.0,0.3849]
[1704143282723,0.01109091,43803.0,43802.0,0.3979]
[1704143283134,0.01009091,43803.0,43802.0,0.3859]
[1704143283342,0.01109091,43803.0,43802.0,0.3969]
[1704143284590,0.00964553,43803.0,43802.0,0.3839]
[1704143284794,0.00864553,43803.0,43802.0,0.3729]
[1704143285008,0.00964553,43803.0,43802.0,0.3849]
[1704143285427,0.00964553,43803.0,43802.0,0.3619]
[1704143285838,0.01064553,43803.0,43802.0,0.3739]
[1704143286271,0.01064553,43803.0,43802.0,0.3619]
[1704143286272,0.00964553,43803.0,43802.0,0.3619]
[1704143286706,0.00964553,43803.0,43802.0,0.3749]
[1704143286707,0.01064553,43803.0,43802.0,0.3749]
[1704143288178,0.39533169,43803.0,43802.0,0.3749]
[1704143288558,1.33393337,43803.0,43802.0,0.3749]
[1704143288762,1.32481459,43803.0,43802.0,0.3749]
[1704143289102,1.20325247,43803.0,43802.0,0.3619]
[1704143289317,1.20326006,43803.0,43802.0,0.3599]
[1704143289842,1.20326006,43803.0,43802.0,0.3529]
[1704143289843,1.43205436,43803.0,43802.0,0.3529]
[1704143290054,1.37737436,43803.0,43802.0,0.3509]
[1704143290191,1.37737436,43803.0,43802.0,0.3519]
[1704143290192,1.43935436,43803.0,43802.0,0.3519]
[1704143290600,1.43935436,43803.0,43802.0,0.002]
[1704143291409,1.15659813,43803.0,43802.0,0.002]
[1704143292000,1.33098658,43803.0,43802.0,0.002]
[1704143292198,1.44032028,43803.0,43802.0,0.002]
[1704143292605,1.46660219,43803.0,43802.0,0.002]
[1704143293004,1.17951753,43803.0,43802.0,0.002]